[Event "*** Titled Tuesday Blitz"]
[Site "Chess.com"]
[Date "2021.03.09"]
[Round "6"]
[White "Shubinkirill2003"]
[Black "AradNazari"]
[Result "1-0"]
[WhiteElo "2672"]
[BlackElo "2499"]
[TimeControl "180+1"]
[EndTime "11:07:00 PST"]
[Termination "Shubinkirill2003 won by resignation"]

1. e4 {[%clk 0:03:00.9]} 1... e6 {[%clk 0:02:51.3]} 2. d4 {[%clk 0:03:00.6]}
2... d5 {[%clk 0:02:48]} 3. Nc3 {[%clk 0:03:01.5]} 3... Bb4 {[%clk 0:02:46]} 4.
e5 {[%clk 0:03:01.3]} 4... Ne7 {[%clk 0:02:44.7]} 5. a3 {[%clk 0:03:00.3]} 5...
Bxc3+ {[%clk 0:02:43.9]} 6. bxc3 {[%clk 0:03:00.8]} 6... c5 {[%clk 0:02:44.4]}
7. Qg4 {[%clk 0:03:00.1]} 7... Qc7 {[%clk 0:02:43]} 8. Bd3 {[%clk 0:02:59.1]}
8... Nbc6 {[%clk 0:02:42.4]} 9. Nf3 {[%clk 0:02:42.3]} 9... cxd4 {[%clk
0:02:39.1]} 10. cxd4 {[%clk 0:02:38.2]} 10... Nb4 {[%clk 0:02:13.1]} 11. axb4
{[%clk 0:01:52.8]} 11... Qc3+ {[%clk 0:02:12.6]} 12. Ke2 {[%clk 0:01:53]} 12...
Qxa1 {[%clk 0:02:12.9]} 13. Qxg7 {[%clk 0:01:52.9]} 13... Rg8 {[%clk 0:02:12.9]}
14. Qf6 {[%clk 0:01:50]} 14... Qc3 {[%clk 0:01:54.9]} 15. Ng5 {[%clk 0:01:40.3]}
15... Rxg5 {[%clk 0:01:53.1]} 16. Bxg5 {[%clk 0:01:41.2]} 16... Qxb4 {[%clk
0:01:51.1]} 17. Rb1 {[%clk 0:01:37.5]} 17... Qa3 {[%clk 0:01:46.7]} 18. Rb3
{[%clk 0:01:37.2]} 1-0

[Event "*** Titled Tuesday Blitz"]
[Site "Chess.com"]
[Date "2021.03.09"]
[Round "6"]
[White "Kildepiotr"]
[Black "volkanyirik"]
[Result "1/2-1/2"]
[WhiteElo "2559"]
[BlackElo "2412"]
[TimeControl "180+1"]
[EndTime "11:07:08 PST"]
[Termination "Game drawn by repetition"]

1. Nf3 {[%clk 0:03:00.9]} 1... Nf6 {[%clk 0:02:59.9]} 2. g3 {[%clk 0:02:59]}
2... g6 {[%clk 0:03:00.3]} 3. Bg2 {[%clk 0:02:58.8]} 3... Bg7 {[%clk 0:03:00.9]}
4. O-O {[%clk 0:02:59.7]} 4... O-O {[%clk 0:03:01.5]} 5. d4 {[%clk 0:03:00.3]}
5... d6 {[%clk 0:03:01.8]} 6. Nbd2 {[%clk 0:03:00.5]} 6... c5 {[%clk 0:03:01.1]}
7. dxc5 {[%clk 0:02:59.9]} 7... dxc5 {[%clk 0:03:00.8]} 8. e4 {[%clk 0:03:00.5]}
8... Nc6 {[%clk 0:03:00.6]} 9. c3 {[%clk 0:03:01.2]} 9... b6 {[%clk 0:02:58]}
10. Qe2 {[%clk 0:03:01.1]} 10... a5 {[%clk 0:02:54.8]} 11. a4 {[%clk 0:02:59.1]}
11... Ba6 {[%clk 0:02:54.4]} 12. Nc4 {[%clk 0:02:59.1]} 12... Ng4 {[%clk
0:02:53.9]} 13. Bf4 {[%clk 0:02:58]} 13... Nge5 {[%clk 0:02:52.5]} 14. Nfxe5
{[%clk 0:02:57.8]} 14... Nxe5 {[%clk 0:02:52.6]} 15. Bxe5 {[%clk 0:02:58.2]}
15... Bxe5 {[%clk 0:02:53.3]} 16. Rfd1 {[%clk 0:02:58.4]} 16... Qc7 {[%clk
0:02:52.6]} 17. f4 {[%clk 0:02:58.4]} 17... Bg7 {[%clk 0:02:52.3]} 18. e5 {[%clk
0:02:57.3]} 18... Rad8 {[%clk 0:02:51.8]} 19. Qe4 {[%clk 0:02:56.5]} 19... Bxc4
{[%clk 0:02:44.6]} 20. Qxc4 {[%clk 0:02:56.2]} 20... Rxd1+ {[%clk 0:02:43.5]}
21. Rxd1 {[%clk 0:02:55.6]} 21... Rd8 {[%clk 0:02:44.4]} 22. Rd5 {[%clk
0:02:46.7]} 22... Rxd5 {[%clk 0:02:38.7]} 23. Qxd5 {[%clk 0:02:42]} 23... e6
{[%clk 0:02:39]} 24. Qa8+ {[%clk 0:02:41.7]} 24... Bf8 {[%clk 0:02:38.9]} 25.
Bc6 {[%clk 0:02:38.3]} 25... Kg7 {[%clk 0:02:37.3]} 26. Kf2 {[%clk 0:02:37.6]}
26... Be7 {[%clk 0:02:35]} 27. Ke2 {[%clk 0:02:35]} 27... f6 {[%clk 0:02:31.4]}
28. exf6+ {[%clk 0:02:34.1]} 28... Bxf6 {[%clk 0:02:32.3]} 29. Qe8 {[%clk
0:02:29.7]} 29... e5 {[%clk 0:02:31.1]} 30. Kf3 {[%clk 0:02:18.7]} 30... exf4
{[%clk 0:02:29.8]} 31. gxf4 {[%clk 0:02:19.6]} 31... g5 {[%clk 0:02:26.1]} 32.
fxg5 {[%clk 0:02:03.2]} 32... Bxg5 {[%clk 0:02:26]} 33. Qd7+ {[%clk 0:02:01]}
33... Qxd7 {[%clk 0:02:26.1]} 34. Bxd7 {[%clk 0:02:01.9]} 34... Bc1 {[%clk
0:02:25.8]} 35. b3 {[%clk 0:01:59.9]} 35... Bd2 {[%clk 0:02:25.3]} 36. c4 {[%clk
0:02:00.1]} 36... Kf6 {[%clk 0:02:23.2]} 37. Ke4 {[%clk 0:02:00.4]} 37... Kg5
{[%clk 0:02:22.3]} 38. Kd5 {[%clk 0:01:59.7]} 38... Bb4 {[%clk 0:02:21.5]} 39.
Kc6 {[%clk 0:01:59.6]} 39... h5 {[%clk 0:02:21.7]} 40. h3 {[%clk 0:01:59]} 40...
h4 {[%clk 0:02:21.3]} 41. Kxb6 {[%clk 0:01:59.4]} 41... Kf4 {[%clk 0:02:21.2]}
42. Kb5 {[%clk 0:01:59.8]} 42... Kg3 {[%clk 0:02:21.7]} 43. Kb6 {[%clk
0:01:59.2]} 43... Kf4 {[%clk 0:02:20.9]} 44. Kb5 {[%clk 0:01:59.6]} 44... Kg3
{[%clk 0:02:21.1]} 45. Kb6 {[%clk 0:02:00.1]} 45... Kf4 {[%clk 0:02:19.9]}
1/2-1/2

[Event "*** Titled Tuesday Blitz"]
[Site "Chess.com"]
[Date "2021.03.09"]
[Round "6"]
[White "Alexandr_Kholin"]
[Black "tlomigtlis"]
[Result "1-0"]
[WhiteElo "2478"]
[BlackElo "2595"]
[TimeControl "180+1"]
[EndTime "11:07:26 PST"]
[Termination "Alexandr_Kholin won by checkmate"]

1. d4 {[%clk 0:03:00.9]} 1... Nf6 {[%clk 0:02:59.6]} 2. c4 {[%clk 0:02:58.4]}
2... g6 {[%clk 0:03:00.1]} 3. Nc3 {[%clk 0:02:57.3]} 3... d5 {[%clk 0:03:00.4]}
4. Nf3 {[%clk 0:02:56.3]} 4... Bg7 {[%clk 0:02:59.6]} 5. h4 {[%clk 0:02:56.4]}
5... O-O {[%clk 0:02:56.1]} 6. cxd5 {[%clk 0:02:55.2]} 6... Nxd5 {[%clk
0:02:55.9]} 7. h5 {[%clk 0:02:55.7]} 7... c5 {[%clk 0:02:49.1]} 8. hxg6 {[%clk
0:02:53.3]} 8... hxg6 {[%clk 0:02:40.1]} 9. Bh6 {[%clk 0:02:52.6]} 9... cxd4
{[%clk 0:02:33.8]} 10. Bxg7 {[%clk 0:02:49.7]} 10... Nxc3 {[%clk 0:02:33.9]} 11.
Qxd4 {[%clk 0:02:38.9]} 11... f6 {[%clk 0:02:15.1]} 12. Bxf8 {[%clk 0:02:33.1]}
12... Nd5 {[%clk 0:02:12.3]} 13. Bh6 {[%clk 0:02:25.4]} 13... Nc6 {[%clk
0:02:11.8]} 14. Qh4 {[%clk 0:02:23.3]} 14... Bf5 {[%clk 0:02:07.5]} 15. Bd2
{[%clk 0:02:20.2]} 15... Kf7 {[%clk 0:02:06.2]} 16. e4 {[%clk 0:02:17.7]} 16...
Ndb4 {[%clk 0:02:06.5]} 17. Qh7+ {[%clk 0:02:14.4]} 17... Ke6 {[%clk 0:02:06.2]}
18. exf5+ {[%clk 0:02:14.3]} 18... gxf5 {[%clk 0:02:07.1]} 19. Bc4+ {[%clk
0:02:13.8]} 19... Kd6 {[%clk 0:01:56.7]} 20. Bxb4+ {[%clk 0:02:12.8]} 20... Kc7
{[%clk 0:01:56.1]} 21. Bc3 {[%clk 0:02:08.1]} 21... Rc8 {[%clk 0:01:52.8]} 22.
Rd1 {[%clk 0:02:04.2]} 22... Qe8 {[%clk 0:01:48.5]} 23. Qxf5 {[%clk 0:02:02.3]}
23... e5 {[%clk 0:01:44.5]} 24. Rh7+ {[%clk 0:01:58.9]} 24... Kb6 {[%clk
0:01:44]} 25. Rdd7 {[%clk 0:01:56.2]} 25... Rb8 {[%clk 0:01:41.9]} 26. Qe6
{[%clk 0:01:53.5]} 26... Qg6 {[%clk 0:01:40.8]} 27. Qd5 {[%clk 0:01:45.7]} 27...
Qb1+ {[%clk 0:01:38.5]} 28. Ke2 {[%clk 0:01:44.2]} 28... e4 {[%clk 0:01:32.7]}
29. Qb5# {[%clk 0:01:43.1]} 1-0

[Event "*** Titled Tuesday Blitz"]
[Site "Chess.com"]
[Date "2021.03.09"]
[Round "6"]
[White "Vasily85"]
[Black "davidkalashian"]
[Result "1-0"]
[WhiteElo "2431"]
[BlackElo "2577"]
[TimeControl "180+1"]
[EndTime "11:07:30 PST"]
[Termination "Vasily85 won by checkmate"]

1. d4 {[%clk 0:03:00.9]} 1... Nf6 {[%clk 0:02:55.6]} 2. Bg5 {[%clk 0:02:59.9]}
2... e6 {[%clk 0:02:56.5]} 3. e4 {[%clk 0:02:59.5]} 3... c5 {[%clk 0:02:55.9]}
4. d5 {[%clk 0:02:55.1]} 4... h6 {[%clk 0:02:53.6]} 5. Bh4 {[%clk 0:02:29.1]}
5... g5 {[%clk 0:02:47.7]} 6. Bg3 {[%clk 0:02:28.4]} 6... Nxe4 {[%clk
0:02:47.9]} 7. Be5 {[%clk 0:02:06.5]} 7... Rg8 {[%clk 0:02:47.2]} 8. Bd3 {[%clk
0:01:51.1]} 8... d6 {[%clk 0:02:28.9]} 9. Bxe4 {[%clk 0:01:40.7]} 9... dxe5
{[%clk 0:02:28.3]} 10. Nc3 {[%clk 0:01:26]} 10... f5 {[%clk 0:02:14.1]} 11. Qh5+
{[%clk 0:01:25.7]} 11... Ke7 {[%clk 0:02:13.8]} 12. O-O-O {[%clk 0:01:17.9]}
12... fxe4 {[%clk 0:02:07.5]} 13. dxe6 {[%clk 0:01:13.9]} 13... Qe8 {[%clk
0:02:07.3]} 14. Nd5+ {[%clk 0:01:11.4]} 14... Kd8 {[%clk 0:01:42.3]} 15. Nf6+
{[%clk 0:01:08.8]} 15... Ke7 {[%clk 0:01:40.2]} 16. Qxe8+ {[%clk 0:01:07.3]}
16... Kxf6 {[%clk 0:01:39.7]} 17. Qf7# {[%clk 0:01:08.2]} 1-0

[Event "*** Titled Tuesday Blitz"]
[Site "Chess.com"]
[Date "2021.03.09"]
[Round "6"]
[White "Bigfish1995"]
[Black "GMBenjaminFinegold"]
[Result "1-0"]
[WhiteElo "3077"]
[BlackElo "2622"]
[TimeControl "180+1"]
[EndTime "11:07:40 PST"]
[Termination "Bigfish1995 won by resignation"]

1. e4 {[%clk 0:02:59.1]} 1... c5 {[%clk 0:02:56.4]} 2. Nf3 {[%clk 0:02:59]} 2...
Nc6 {[%clk 0:02:56.6]} 3. Bb5 {[%clk 0:02:58.7]} 3... e6 {[%clk 0:02:56.4]} 4.
O-O {[%clk 0:02:56.4]} 4... Nge7 {[%clk 0:02:56.5]} 5. c3 {[%clk 0:02:55.8]}
5... a6 {[%clk 0:02:56]} 6. Ba4 {[%clk 0:02:55.4]} 6... b5 {[%clk 0:02:56.1]} 7.
Bc2 {[%clk 0:02:55.4]} 7... Bb7 {[%clk 0:02:56.3]} 8. Re1 {[%clk 0:02:53.7]}
8... Ng6 {[%clk 0:02:54.1]} 9. d4 {[%clk 0:02:48.8]} 9... Be7 {[%clk 0:02:33.6]}
10. d5 {[%clk 0:02:46.3]} 10... Nce5 {[%clk 0:02:27.1]} 11. Nxe5 {[%clk
0:02:46.4]} 11... Nxe5 {[%clk 0:02:27.5]} 12. f4 {[%clk 0:02:47]} 12... Ng6
{[%clk 0:02:25.2]} 13. d6 {[%clk 0:02:47.2]} 13... Bf8 {[%clk 0:02:18.1]} 14. e5
{[%clk 0:02:30.8]} 14... Nh4 {[%clk 0:02:14.4]} 15. Be4 {[%clk 0:02:24.8]} 15...
Qb6 {[%clk 0:02:08.4]} 16. Nd2 {[%clk 0:02:22.6]} 16... O-O-O {[%clk 0:01:54.9]}
17. Qh5 {[%clk 0:02:22.2]} 17... Ng6 {[%clk 0:01:50]} 18. Bxb7+ {[%clk
0:02:21.5]} 18... Qxb7 {[%clk 0:01:48.9]} 19. Ne4 {[%clk 0:02:21.6]} 19... Qc6
{[%clk 0:01:39.8]} 20. Ng5 {[%clk 0:02:19.6]} 20... f6 {[%clk 0:01:31.3]} 21.
Nf7 {[%clk 0:02:19.8]} 21... fxe5 {[%clk 0:01:28.9]} 22. fxe5 {[%clk 0:02:20]}
1-0

[Event "*** Titled Tuesday Blitz"]
[Site "Chess.com"]
[Date "2021.03.09"]
[Round "6"]
[White "googlegoom"]
[Black "Anton_Demchenko"]
[Result "0-1"]
[WhiteElo "2477"]
[BlackElo "2869"]
[TimeControl "180+1"]
[EndTime "11:07:45 PST"]
[Termination "Anton_Demchenko won by resignation"]

1. Nf3 {[%clk 0:03:00.9]} 1... Nf6 {[%clk 0:02:59.6]} 2. b3 {[%clk 0:03:00.7]}
2... g6 {[%clk 0:02:59.5]} 3. Bb2 {[%clk 0:03:01.3]} 3... Bg7 {[%clk 0:03:00.4]}
4. e3 {[%clk 0:03:01.2]} 4... O-O {[%clk 0:03:01.3]} 5. d4 {[%clk 0:03:01.9]}
5... d6 {[%clk 0:03:01.8]} 6. Be2 {[%clk 0:03:02.2]} 6... b6 {[%clk 0:03:02.2]}
7. Nbd2 {[%clk 0:03:02.2]} 7... Bb7 {[%clk 0:03:02.9]} 8. O-O {[%clk 0:03:02.9]}
8... Nbd7 {[%clk 0:03:02.9]} 9. c4 {[%clk 0:03:03.5]} 9... Re8 {[%clk
0:03:02.9]} 10. Qc2 {[%clk 0:03:03.4]} 10... e5 {[%clk 0:03:03.5]} 11. dxe5
{[%clk 0:03:04]} 11... dxe5 {[%clk 0:03:02.9]} 12. Rfd1 {[%clk 0:03:04]} 12...
Qe7 {[%clk 0:03:03.4]} 13. a3 {[%clk 0:03:04]} 13... e4 {[%clk 0:03:03.3]} 14.
Ne1 {[%clk 0:03:03.4]} 14... Ne5 {[%clk 0:03:02.2]} 15. b4 {[%clk 0:03:00.8]}
15... c5 {[%clk 0:02:57.9]} 16. b5 {[%clk 0:02:50]} 16... h5 {[%clk 0:02:57]}
17. Nb1 {[%clk 0:02:45.2]} 17... Qe6 {[%clk 0:02:18]} 18. a4 {[%clk 0:02:36.3]}
18... Rad8 {[%clk 0:02:12.6]} 19. Na3 {[%clk 0:02:19.5]} 19... Qf5 {[%clk
0:02:08.9]} 20. Rxd8 {[%clk 0:02:00.6]} 20... Rxd8 {[%clk 0:02:09.8]} 21. Rd1
{[%clk 0:02:00.5]} 21... Re8 {[%clk 0:02:10.5]} 22. Nb1 {[%clk 0:01:57.6]} 22...
Nfg4 {[%clk 0:02:07]} 23. Bf1 {[%clk 0:01:48]} 23... Qxf2+ {[%clk 0:01:48.1]}
24. Qxf2 {[%clk 0:01:44.9]} 24... Nxf2 {[%clk 0:01:49]} 25. Kxf2 {[%clk
0:01:45.1]} 25... Ng4+ {[%clk 0:01:49.6]} 26. Ke2 {[%clk 0:01:36.9]} 26... Bxb2
{[%clk 0:01:49.9]} 27. Rd7 {[%clk 0:01:37.6]} 27... Rb8 {[%clk 0:01:45.5]} 28.
h3 {[%clk 0:01:22.9]} 28... Ne5 {[%clk 0:01:42.8]} 0-1

[Event "*** Titled Tuesday Blitz"]
[Site "Chess.com"]
[Date "2021.03.09"]
[Round "6"]
[White "Evachess2006"]
[Black "miredenizdogan"]
[Result "0-1"]
[WhiteElo "1588"]
[BlackElo "2254"]
[TimeControl "180+1"]
[EndTime "11:07:49 PST"]
[Termination "miredenizdogan won on time"]

1. e4 {[%clk 0:00:32.2]} 1... e6 {[%clk 0:02:58.1]} 2. d4 {[%clk 0:00:30.9]}
2... d5 {[%clk 0:02:59]} 3. exd5 {[%clk 0:00:30.6]} 3... exd5 {[%clk 0:02:59.9]}
4. Bd3 {[%clk 0:00:29.2]} 4... Nc6 {[%clk 0:02:58.7]} 5. Ne2 {[%clk 0:00:29.5]}
5... Bd6 {[%clk 0:02:57.6]} 6. O-O {[%clk 0:00:28.8]} 6... Qh4 {[%clk
0:02:50.7]} 7. Ng3 {[%clk 0:00:19.4]} 7... Nge7 {[%clk 0:02:47.6]} 8. c3 {[%clk
0:00:14]} 8... O-O {[%clk 0:02:47.1]} 9. Nd2 {[%clk 0:00:08.5]} 9... Bg4 {[%clk
0:02:46.2]} 10. Nf3 {[%clk 0:00:06.9]} 10... Qf6 {[%clk 0:02:46.2]} 11. Bg5
{[%clk 0:00:01.8]} 11... Qe6 {[%clk 0:02:33.1]} 12. Bxe7 {[%clk 0:00:01.7]}
12... Nxe7 {[%clk 0:02:31.1]} 13. Re1 {[%clk 0:00:02.1]} 13... Qf6 {[%clk
0:02:27.2]} 14. Qe2 {[%clk 0:00:02]} 14... Rae8 {[%clk 0:02:23.2]} 0-1

[Event "*** Titled Tuesday Blitz"]
[Site "Chess.com"]
[Date "2021.03.09"]
[Round "6"]
[White "kirillshevchenko"]
[Black "Fandorin779"]
[Result "1-0"]
[WhiteElo "2828"]
[BlackElo "2520"]
[TimeControl "180+1"]
[EndTime "11:07:56 PST"]
[Termination "kirillshevchenko won by resignation"]

1. e4 {[%clk 0:03:00.9]} 1... Nf6 {[%clk 0:02:59]} 2. d3 {[%clk 0:03:00.7]} 2...
e5 {[%clk 0:02:57.2]} 3. f4 {[%clk 0:03:00.5]} 3... exf4 {[%clk 0:02:54.8]} 4.
Bxf4 {[%clk 0:03:01.4]} 4... d5 {[%clk 0:02:54.2]} 5. e5 {[%clk 0:03:01.3]} 5...
Nfd7 {[%clk 0:02:54]} 6. Nf3 {[%clk 0:03:01.2]} 6... Nc5 {[%clk 0:02:53.5]} 7.
d4 {[%clk 0:02:47.4]} 7... Ne6 {[%clk 0:02:53.6]} 8. Be3 {[%clk 0:02:40.3]} 8...
c5 {[%clk 0:02:53.6]} 9. c3 {[%clk 0:02:40]} 9... Nc6 {[%clk 0:02:52.6]} 10. Bd3
{[%clk 0:02:40.1]} 10... Qb6 {[%clk 0:02:44]} 11. Qd2 {[%clk 0:02:33.7]} 11...
cxd4 {[%clk 0:02:42.6]} 12. cxd4 {[%clk 0:02:33.7]} 12... Nb4 {[%clk 0:02:32.5]}
13. Be2 {[%clk 0:02:27.7]} 13... Bd7 {[%clk 0:02:20.6]} 14. Nc3 {[%clk
0:02:27.3]} 14... Qa5 {[%clk 0:01:54.7]} 15. O-O {[%clk 0:02:22.9]} 15... Be7
{[%clk 0:01:53.4]} 16. a3 {[%clk 0:02:22.6]} 16... Nc6 {[%clk 0:01:48.3]} 17. b4
{[%clk 0:02:23]} 17... Qd8 {[%clk 0:01:46.1]} 18. Nxd5 {[%clk 0:02:23.1]} 18...
O-O {[%clk 0:01:20.8]} 19. b5 {[%clk 0:02:14.4]} 19... Nb8 {[%clk 0:01:11.6]}
20. Nxe7+ {[%clk 0:02:14.2]} 20... Qxe7 {[%clk 0:01:07]} 21. d5 {[%clk
0:02:15.1]} 21... Nd8 {[%clk 0:00:45.9]} 22. Rac1 {[%clk 0:02:14.3]} 22... Qxa3
{[%clk 0:00:31.3]} 23. Bc5 {[%clk 0:02:13.3]} 1-0

[Event "*** Titled Tuesday Blitz"]
[Site "Chess.com"]
[Date "2021.03.09"]
[Round "6"]
[White "Chernov_Mikhail"]
[Black "MatyChess1"]
[Result "0-1"]
[WhiteElo "2398"]
[BlackElo "2586"]
[TimeControl "180+1"]
[EndTime "11:07:59 PST"]
[Termination "MatyChess1 won by resignation"]

1. e4 {[%clk 0:03:00.9]} 1... c5 {[%clk 0:03:00.4]} 2. Nf3 {[%clk 0:03:00.7]}
2... d6 {[%clk 0:03:01]} 3. d4 {[%clk 0:03:01.2]} 3... cxd4 {[%clk 0:03:01.9]}
4. Nxd4 {[%clk 0:03:02.1]} 4... Nf6 {[%clk 0:03:02.7]} 5. Nc3 {[%clk 0:03:02.7]}
5... a6 {[%clk 0:03:03.4]} 6. Bc4 {[%clk 0:03:02.8]} 6... e6 {[%clk 0:03:03.4]}
7. Bb3 {[%clk 0:03:03.2]} 7... b5 {[%clk 0:03:02.8]} 8. Bg5 {[%clk 0:03:02.7]}
8... Be7 {[%clk 0:03:02.3]} 9. Qf3 {[%clk 0:03:02.2]} 9... Qc7 {[%clk 0:02:55]}
10. e5 {[%clk 0:03:02]} 10... Bb7 {[%clk 0:02:52.4]} 11. exd6 {[%clk 0:03:02.9]}
11... Bxd6 {[%clk 0:02:50.1]} 12. Qe3 {[%clk 0:03:03.8]} 12... Bc5 {[%clk
0:02:25.5]} 13. O-O-O {[%clk 0:03:00]} 13... Nc6 {[%clk 0:02:23.9]} 14. Bxf6
{[%clk 0:02:53.2]} 14... gxf6 {[%clk 0:02:20.8]} 15. Nd5 {[%clk 0:02:50.9]}
15... Qe5 {[%clk 0:01:56]} 16. Qxe5 {[%clk 0:01:31.2]} 16... fxe5 {[%clk
0:01:43.7]} 17. Nxc6 {[%clk 0:01:30.7]} 17... Bxc6 {[%clk 0:01:43.1]} 18. Nc7+
{[%clk 0:01:28.9]} 18... Ke7 {[%clk 0:01:43.3]} 19. Nxa8 {[%clk 0:01:29.8]}
19... Rxa8 {[%clk 0:01:37.7]} 20. f3 {[%clk 0:01:18.6]} 20... Rg8 {[%clk
0:01:37.1]} 21. Rhe1 {[%clk 0:01:19]} 21... Rxg2 {[%clk 0:01:28]} 22. Rxe5
{[%clk 0:01:19.1]} 22... Bd6 {[%clk 0:01:28.2]} 23. Rh5 {[%clk 0:01:18.9]} 23...
Bxf3 {[%clk 0:01:24.5]} 24. Rxh7 {[%clk 0:01:19]} 24... Bf4+ {[%clk 0:01:23.6]}
0-1

[Event "*** Titled Tuesday Blitz"]
[Site "Chess.com"]
[Date "2021.03.09"]
[Round "6"]
[White "Vanina1989"]
[Black "Rakesh"]
[Result "1-0"]
[WhiteElo "2746"]
[BlackElo "2516"]
[TimeControl "180+1"]
[EndTime "11:08:18 PST"]
[Termination "Vanina1989 won by resignation"]

1. d4 {[%clk 0:03:00.9]} 1... Nf6 {[%clk 0:03:00]} 2. c4 {[%clk 0:03:01]} 2...
e5 {[%clk 0:03:00.4]} 3. dxe5 {[%clk 0:02:57.9]} 3... Ng4 {[%clk 0:03:00.9]} 4.
e4 {[%clk 0:02:58]} 4... Nxe5 {[%clk 0:03:00.7]} 5. f4 {[%clk 0:02:57.1]} 5...
Nec6 {[%clk 0:03:00.4]} 6. Nf3 {[%clk 0:02:57.1]} 6... Bc5 {[%clk 0:03:00.1]} 7.
a3 {[%clk 0:02:54.6]} 7... a5 {[%clk 0:03:00.3]} 8. Nc3 {[%clk 0:02:54.3]} 8...
O-O {[%clk 0:03:00.5]} 9. Bd3 {[%clk 0:02:42.1]} 9... d6 {[%clk 0:03:00.5]} 10.
Bd2 {[%clk 0:02:34]} 10... Nd7 {[%clk 0:02:59.7]} 11. Qc2 {[%clk 0:02:29]} 11...
Nf6 {[%clk 0:02:56.8]} 12. O-O-O {[%clk 0:02:26.6]} 12... Re8 {[%clk 0:02:53.5]}
13. e5 {[%clk 0:02:23.6]} 13... dxe5 {[%clk 0:02:42.2]} 14. fxe5 {[%clk
0:02:23.6]} 14... Nxe5 {[%clk 0:02:42.4]} 15. Nxe5 {[%clk 0:02:23.4]} 15... Rxe5
{[%clk 0:02:43.3]} 16. Bf4 {[%clk 0:02:23.6]} 16... Qe7 {[%clk 0:02:34.8]} 17.
Bxe5 {[%clk 0:02:22.4]} 17... Qxe5 {[%clk 0:02:35.7]} 18. Rhe1 {[%clk
0:02:22.1]} 18... Qg5+ {[%clk 0:02:33.6]} 19. Qd2 {[%clk 0:02:17.1]} 19... Qh5
{[%clk 0:02:31]} 20. Ne4 {[%clk 0:01:59.4]} 20... Nxe4 {[%clk 0:02:30.1]} 21.
Rxe4 {[%clk 0:01:56.6]} 21... Be6 {[%clk 0:02:26.8]} 22. g3 {[%clk 0:01:44.6]}
22... Rd8 {[%clk 0:02:25.3]} 23. Rxe6 {[%clk 0:01:37.8]} 23... fxe6 {[%clk
0:02:16.6]} 24. Bxh7+ {[%clk 0:01:37.1]} 24... Kxh7 {[%clk 0:02:17.5]} 25. Qxd8
{[%clk 0:01:37]} 25... Qxh2 {[%clk 0:01:58.4]} 26. Qd3+ {[%clk 0:01:36.5]} 26...
Kh6 {[%clk 0:01:48.3]} 27. Qe4 {[%clk 0:01:36.3]} 27... Qxg3 {[%clk 0:01:39]}
28. Qxe6+ {[%clk 0:01:36]} 28... g6 {[%clk 0:01:37.6]} 29. Rh1+ {[%clk
0:01:32.4]} 29... Kg5 {[%clk 0:01:37.2]} 30. Qd5+ {[%clk 0:01:30.2]} 30... Kf6
{[%clk 0:01:31]} 31. Rf1+ {[%clk 0:01:28.8]} 31... Kg7 {[%clk 0:01:13.3]} 32.
Qxc5 {[%clk 0:01:28.2]} 32... Qg5+ {[%clk 0:01:13.6]} 33. Qxg5 {[%clk
0:01:27.9]} 1-0

[Event "*** Titled Tuesday Blitz"]
[Site "Chess.com"]
[Date "2021.03.09"]
[Round "6"]
[White "fm_magua"]
[Black "BillieKimbah"]
[Result "0-1"]
[WhiteElo "2588"]
[BlackElo "2865"]
[TimeControl "180+1"]
[EndTime "11:08:21 PST"]
[Termination "BillieKimbah won by resignation"]

1. e4 {[%clk 0:03:00.9]} 1... c5 {[%clk 0:02:54.8]} 2. Nf3 {[%clk 0:03:00.4]}
2... Nc6 {[%clk 0:02:54.9]} 3. d4 {[%clk 0:03:00.6]} 3... cxd4 {[%clk
0:02:52.8]} 4. Nxd4 {[%clk 0:03:01.3]} 4... Qc7 {[%clk 0:02:53.1]} 5. Nc3 {[%clk
0:03:00.8]} 5... e6 {[%clk 0:02:53.3]} 6. Be2 {[%clk 0:03:01]} 6... Nf6 {[%clk
0:02:51.3]} 7. O-O {[%clk 0:03:01.1]} 7... Be7 {[%clk 0:02:51.6]} 8. Be3 {[%clk
0:03:00.8]} 8... O-O {[%clk 0:02:51.1]} 9. f4 {[%clk 0:03:01.1]} 9... d6 {[%clk
0:02:50.3]} 10. Qe1 {[%clk 0:03:01.6]} 10... a6 {[%clk 0:02:45.5]} 11. Qg3
{[%clk 0:03:01.2]} 11... Nxd4 {[%clk 0:02:44.9]} 12. Bxd4 {[%clk 0:03:01.2]}
12... b5 {[%clk 0:02:45.6]} 13. e5 {[%clk 0:03:01.5]} 13... dxe5 {[%clk
0:02:43]} 14. fxe5 {[%clk 0:03:01.1]} 14... Bc5 {[%clk 0:02:40.5]} 15. Bxc5
{[%clk 0:03:00.4]} 15... Qxc5+ {[%clk 0:02:41.4]} 16. Kh1 {[%clk 0:03:00.7]}
16... Nd7 {[%clk 0:02:39.9]} 17. Bf3 {[%clk 0:03:00.4]} 17... Ra7 {[%clk
0:02:31.9]} 18. Rae1 {[%clk 0:02:59.1]} 18... Bb7 {[%clk 0:02:30.4]} 19. Bxb7
{[%clk 0:02:51.8]} 19... Rxb7 {[%clk 0:02:31.3]} 20. Ne4 {[%clk 0:02:50.9]}
20... Qxc2 {[%clk 0:02:22.1]} 21. Rf2 {[%clk 0:02:42.2]} 21... Qc7 {[%clk
0:02:14.2]} 22. Qg5 {[%clk 0:01:38.7]} 22... h6 {[%clk 0:02:00.4]} 23. Qg3
{[%clk 0:01:38.4]} 23... Rbb8 {[%clk 0:01:52.5]} 24. Rf4 {[%clk 0:01:35]} 24...
Rbd8 {[%clk 0:01:44.5]} 25. Rg4 {[%clk 0:01:17.9]} 25... Qxe5 {[%clk 0:01:38.9]}
26. Qh4 {[%clk 0:01:12.1]} 26... f5 {[%clk 0:01:34.9]} 27. Nc3 {[%clk
0:00:49.4]} 27... fxg4 {[%clk 0:01:34]} 0-1

[Event "*** Titled Tuesday Blitz"]
[Site "Chess.com"]
[Date "2021.03.09"]
[Round "6"]
[White "FormerProdigy"]
[Black "axvesik"]
[Result "1-0"]
[WhiteElo "2832"]
[BlackElo "2525"]
[TimeControl "180+1"]
[EndTime "11:08:22 PST"]
[Termination "FormerProdigy won by resignation"]

1. d4 {[%clk 0:03:00.9]} 1... Nf6 {[%clk 0:02:57.8]} 2. c4 {[%clk 0:03:01.2]}
2... e6 {[%clk 0:02:57.2]} 3. Nc3 {[%clk 0:03:01]} 3... Bb4 {[%clk 0:02:56.8]}
4. e3 {[%clk 0:03:01.3]} 4... O-O {[%clk 0:02:55.6]} 5. Bd3 {[%clk 0:03:01.5]}
5... d5 {[%clk 0:02:55.9]} 6. cxd5 {[%clk 0:03:02.4]} 6... exd5 {[%clk
0:02:55.9]} 7. Ne2 {[%clk 0:03:02.6]} 7... c5 {[%clk 0:02:46.2]} 8. a3 {[%clk
0:02:51.9]} 8... Bxc3+ {[%clk 0:02:41.7]} 9. bxc3 {[%clk 0:02:52.8]} 9... c4
{[%clk 0:02:36]} 10. Bc2 {[%clk 0:02:51.1]} 10... Nc6 {[%clk 0:02:35.3]} 11. f3
{[%clk 0:02:30.1]} 11... Re8 {[%clk 0:02:33]} 12. O-O {[%clk 0:02:28.6]} 12...
Bd7 {[%clk 0:02:19]} 13. Ng3 {[%clk 0:02:26.8]} 13... Na5 {[%clk 0:01:53.6]} 14.
e4 {[%clk 0:02:16.5]} 14... dxe4 {[%clk 0:01:46.3]} 15. fxe4 {[%clk 0:02:17.4]}
15... Bg4 {[%clk 0:01:36.2]} 16. Qe1 {[%clk 0:01:15.4]} 16... Qd7 {[%clk
0:01:13.6]} 17. h3 {[%clk 0:01:04]} 17... Bh5 {[%clk 0:00:54.9]} 18. Rxf6 {[%clk
0:01:02.9]} 18... gxf6 {[%clk 0:00:54.7]} 19. Nxh5 {[%clk 0:01:03]} 1-0